[Event "GCT Croatia Blitz 2021"]
[Site "Zagreb"]
[Date "2021.07.11"]
[Round "18"]
[White "Giri, Anish"]
[Black "Mamedyarov, Shakhriyar"]
[Result "1-0"]
[ECO "E10"]
[WhiteElo "2776"]
[BlackElo "2782"]
[Annotator "RC"]
[PlyCount "87"]
[EventDate "2021.07.10"]
[EventType "tourn"]
[EventCountry "CRO"]
[SourceTitle "playchess.com"]
[Source "ChessBase"]
[SourceQuality "1"]
[TimeControl "300+2"]

1. d4 {[%emt 0:00:01]} Nf6 {[%emt 0:00:02]} 2. c4 {[%emt 0:00:01]} e6 {[%emt 0:
00:03]} 3. Nf3 {[%emt 0:00:01]} c5 {[%emt 0:00:02]} 4. d5 {[%emt 0:00:04]} b5 {
[%emt 0:00:01]} 5. dxe6 {[%emt 0:00:04]} fxe6 {[%emt 0:00:02]} 6. cxb5 {
[%emt 0:00:01]} d5 {[%emt 0:00:03]} 7. Nc3 {[%emt 0:00:02]} Nbd7 {[%emt 0:00:
04]} 8. e4 {[%emt 0:00:02]} d4 {[%emt 0:00:03]} 9. e5 {[%emt 0:00:10]} Ng4 {
[%emt 0:00:02]} 10. Ne4 {[%emt 0:00:51]} Bb7 {[%emt 0:00:01]} 11. Ned2 {
[%emt 0:01:02]} Ngxe5 {[%emt 0:00:39]} 12. Nxe5 {[%emt 0:00:01]} Nxe5 {[%emt 0:
00:01]} 13. Qh5+ {[%emt 0:00:04]} Nf7 {[%emt 0:00:08]} 14. Nc4 {[%emt 0:00:04]}
Be7 {[%emt 0:00:21]} 15. Bd3 {[%emt 0:00:06]} Bxg2 {[%emt 0:00:48]} 16. Rg1 {
[%emt 0:00:01]} Qd5 {[%emt 0:00:01]} 17. Qxd5 {[%emt 0:00:09]} Bxd5 {[%emt 0:
00:08]} 18. Rxg7 {[%emt 0:00:01]} Bf6 {[%emt 0:00:05]} 19. Rg4 {[%emt 0:00:09]}
Ke7 {[%emt 0:00:56]} 20. b3 {[%emt 0:00:43]} h5 {[%emt 0:00:11]} 21. Rg6 {
[%emt 0:00:27]} Bxc4 {[%emt 0:00:16]} 22. Bxc4 {[%emt 0:00:13]} Ne5 {[%emt 0:
00:02]} 23. Rg3 {[%emt 0:00:05]} h4 {[%emt 0:00:02]} 24. Rh3 {[%emt 0:00:09]}
Rag8 {[%emt 0:00:04]} 25. Kf1 {[%emt 0:00:08]} Rg7 {[%emt 0:00:20]} 26. Ba3 {
[%emt 0:00:02]} Kd6 {[%emt 0:00:02]} 27. Rc1 {[%emt 0:00:05]} Rhg8 {[%emt 0:00:
01]} 28. Ke2 {[%emt 0:00:09]} Rg1 {[%emt 0:00:09]} 29. Rc2 {[%emt 0:00:09]}
R8g4 {[%emt 0:00:15]} 30. Bd3 {[%emt 0:00:04]} Nxd3 {[%emt 0:00:04]} 31. Kxd3 {
[%emt 0:00:07]} Rg5 {[%emt 0:00:05]} 32. Kc4 {[%emt 0:00:08]} Rf5 {[%emt 0:00:
05]} 33. Rd3 {[%emt 0:00:13]} Rg2 {[%emt 0:00:03]} 34. h3 {[%emt 0:00:04]} Rh2
{[%emt 0:00:31]} 35. Re2 {[%emt 0:00:12]} Rh1 {[%emt 0:00:11]} 36. Rc2 {
[%emt 0:00:06]} Rf1 {[%emt 0:00:02]} 37. b4 {[%emt 0:00:09]} cxb4 {[%emt 0:00:
02]} 38. Bxb4+ {[%emt 0:00:00]} Kd7 {[%emt 0:00:06]} 39. Ra3 {[%emt 0:00:01]}
R5xf2 {[%emt 0:00:12]} 40. Rxa7+ {[%emt 0:00:01]} Ke8 {[%emt 0:00:00]} 41. Rxf2
{[%emt 0:00:02]} Rxf2 {[%emt 0:00:01]} 42. b6 {[%emt 0:00:00]} Be5 {[%emt 0:00:
03]} 43. b7 {[%emt 0:00:04]} Rxa2 {[%emt 0:00:02]} 44. Rxa2 {[%emt 0:00:01]}
1-0

[Event "GCT Croatia Blitz 2021"]
[Site "Zagreb"]
[Date "2021.07.11"]
[Round "18"]
[White "Vachier-Lagrave, Maxime"]
[Black "Korobov, Anton"]
[Result "1-0"]
[ECO "A45"]
[WhiteElo "2749"]
[BlackElo "2683"]
[Annotator "RC"]
[PlyCount "103"]
[EventDate "2021.07.10"]
[EventType "tourn"]
[EventCountry "CRO"]
[SourceTitle "playchess.com"]
[Source "ChessBase"]
[SourceQuality "1"]
[TimeControl "300+2"]

1. d4 {[%emt 0:00:01]} Nf6 {[%emt 0:00:01]} 2. Bf4 {[%emt 0:00:02]} c5 {
[%emt 0:00:09]} 3. d5 {[%emt 0:00:03]} d6 {[%emt 0:00:02]} 4. Nc3 {[%emt 0:00:
17]} e5 {[%emt 0:00:05]} 5. Bd2 {[%emt 0:00:02]} g6 {[%emt 0:00:14]} 6. e4 {
[%emt 0:00:02]} Bg7 {[%emt 0:00:01]} 7. a4 {[%emt 0:00:17]} O-O {[%emt 0:00:03]
} 8. Nge2 {[%emt 0:00:01]} Nh5 {[%emt 0:00:19]} 9. g3 {[%emt 0:00:12]} f5 {
[%emt 0:00:05]} 10. exf5 {[%emt 0:00:01]} gxf5 {[%emt 0:00:04]} 11. Bg2 {
[%emt 0:00:01]} Nd7 {[%emt 0:00:11]} 12. O-O {[%emt 0:00:05]} a6 {[%emt 0:00:
25]} 13. f4 {[%emt 0:00:06]} Ndf6 {[%emt 0:00:28]} 14. fxe5 {[%emt 0:00:17]}
dxe5 {[%emt 0:00:01]} 15. Bg5 {[%emt 0:00:02]} Qd6 {[%emt 0:00:18]} 16. Qd2 {
[%emt 0:00:02]} Bd7 {[%emt 0:00:05]} 17. Nd1 {[%emt 0:00:02]} Ne4 {[%emt 0:00:
14]} 18. Bxe4 {[%emt 0:00:02]} fxe4 {[%emt 0:00:01]} 19. Rxf8+ {[%emt 0:00:36]}
Rxf8 {[%emt 0:00:02]} 20. Nf2 {[%emt 0:00:02]} Qg6 {[%emt 0:00:15]} 21. Nc3 {
[%emt 0:00:03]} h6 {[%emt 0:00:33]} 22. Bh4 {[%emt 0:00:07]} e3 {[%emt 0:00:50]
} 23. Qxe3 {[%emt 0:00:02]} Qxc2 {[%emt 0:00:03]} 24. Nce4 {[%emt 0:00:35]}
Qxb2 {[%emt 0:00:05]} 25. Rd1 {[%emt 0:00:09]} c4 {[%emt 0:00:05]} 26. Nc5 {
[%emt 0:00:07]} Bf5 {[%emt 0:00:13]} 27. Ne6 {[%emt 0:00:02]} c3 {[%emt 0:00:
06]} 28. Nxf8 {[%emt 0:00:06]} c2 {[%emt 0:00:01]} 29. Rf1 {[%emt 0:00:07]}
Bxf8 {[%emt 0:00:02]} 30. g4 {[%emt 0:00:01]} Qb4 {[%emt 0:00:34]} 31. Qf3 {
[%emt 0:00:26]} Bc8 {[%emt 0:00:07]} 32. gxh5 {[%emt 0:00:15]} Qxh4 {[%emt 0:
00:02]} 33. Ne4 {[%emt 0:00:02]} Qg4+ {[%emt 0:00:14]} 34. Qxg4+ {[%emt 0:00:
01]} Bxg4 {[%emt 0:00:01]} 35. Nf6+ {[%emt 0:00:01]} Kg7 {[%emt 0:00:00]} 36.
Nxg4 {[%emt 0:00:03]} Ba3 {[%emt 0:00:01]} 37. Nxe5 {[%emt 0:00:55]} c1=Q {
[%emt 0:00:02]} 38. Rxc1 {[%emt 0:00:01]} Bxc1 {[%emt 0:00:01]} 39. a5 {
[%emt 0:00:01]} Kf6 {[%emt 0:00:04]} 40. Nc4 {[%emt 0:00:02]} Kf5 {[%emt 0:00:
09]} 41. h4 {[%emt 0:00:11]} Kf6 {[%emt 0:00:05]} 42. Kf2 {[%emt 0:00:02]} Bf4
{[%emt 0:00:01]} 43. Kf3 {[%emt 0:00:01]} Bc7 {[%emt 0:00:01]} 44. Ke4 {
[%emt 0:00:02]} Bd8 {[%emt 0:00:01]} 45. Kd4 {[%emt 0:00:05]} Kf5 {[%emt 0:00:
02]} 46. Nd6+ {[%emt 0:00:01]} Kg4 {[%emt 0:00:01]} 47. Nxb7 {[%emt 0:00:01]}
Bxh4 {[%emt 0:00:01]} 48. Kc5 {[%emt 0:00:09]} Kxh5 {[%emt 0:00:01]} 49. Kb6 {
[%emt 0:00:01]} Kg4 {[%emt 0:00:02]} 50. Kxa6 {[%emt 0:00:01]} h5 {[%emt 0:00:
00]} 51. Kb5 {[%emt 0:00:02]} Bf6 {[%emt 0:00:06]} 52. a6 {[%emt 0:00:01]} 1-0